lending/lending_fUSD_20260312
["ID","MTS","AMOUNT","RATE_DAILY","PERIOD"]
[408281598,1773348641051,-500.0,0.00015,30]
[408281599,1773348641063,-500.0,0.00015,30]
[408281600,1773348641072,-500.0,0.00015,30]
[408281601,1773348641082,-500.0,0.00015,30]
[408281602,1773348641091,-860.06506787,0.00015,30]
[408281603,1773348641100,-4000.0,0.00015037,2]
[408281604,1773348641110,-500.0,0.00015122,2]
[408281605,1773348641119,-742.82,0.00015147,2]
[408281606,1773348641128,-500.0,0.00015166,2]
[408281607,1773348641138,-1503.0,0.00015293,2]
[408281608,1773348641148,-297.0,0.00015314,2]
[408281609,1773348641158,-1495.96297843,0.00015339,2]
[408281610,1773348641168,-217.55,0.00015372,2]
[408281611,1773348641178,-197.23311885,0.00015382,2]
[408281612,1773348641187,-1688.0,0.0001539,2]
[408281613,1773348641197,-200.0,0.00015391,2]
[408281614,1773348641206,-4000.0,0.00015395,2]
[408281615,1773348641215,-560.41079599,0.00015397,2]
[408281616,1773348641225,-662.0,0.0001542,2]
[408281617,1773348641235,-860.72006406,0.00015421,2]
[408281618,1773348641245,-1000.0,0.00015421,2]
[408281619,1773348641255,-1000.0,0.00015421,2]
[408281620,1773348641264,-1000.0,0.00015421,2]
[408281621,1773348641273,-1000.0,0.00015421,2]
[408281622,1773348641283,-393.08543644,0.00015421,2]
[408281623,1773348641293,-1000.0,0.00015421,2]
[408281624,1773348641302,-1000.0,0.00015421,2]
[408281625,1773348641311,-742.82,0.00015421,2]
[408281626,1773348641321,-630.68329479,0.00015441,2]
[408281627,1773348641331,-998.0,0.00015451,2]
[408281628,1773348641340,-17234.4460913,0.00015456,2]
[408281629,1773348641350,-1271.0,0.00015482,2]
[408281630,1773348641359,-265.01982058,0.000156,2]
[408281631,1773348641368,-496.63308025,0.000156,2]
[408281632,1773348641377,-498.28460179,0.000156,2]
[408281633,1773348641387,-458.19724217,0.000156,2]
[408281634,1773348641396,-1400.0,0.000156,5]
[408281635,1773348641406,-2500.0,0.00015628,2]
[408281636,1773348641425,-3422.07334262,0.00015637,2]
[408281637,1773348641435,-15071.90661258,0.00015653,2]
[408281638,1773348641445,-742.82,0.00015695,2]
[408281639,1773348641455,-2800.0,0.000157,5]
[408281640,1773348641465,-500.0,0.00015736,2]
[408281641,1773348641474,-500.0,0.00015736,2]
[408281642,1773348641484,-500.0,0.00015736,2]
[408281643,1773348641493,-4000.0,0.00015753,2]
[408281644,1773348641502,-500.0,0.00015773,2]
[408281645,1773348641511,-225.97976062,0.00015773,2]
[408281646,1773348641521,-500.0,0.00015773,2]
[408281647,1773348641531,-500.0,0.00015773,2]
[408281648,1773348641540,-491.61562808,0.00015773,2]
[408281649,1773348641550,-500.0,0.00015773,2]
[408281650,1773348641560,-4200.0,0.000158,5]
[408281651,1773348641569,-163.5055483,0.00015826,2]
[408281652,1773348641578,-5700.0,0.000159,5]
[408281653,1773348641589,-200.0,0.00015939,2]
[408281654,1773348641599,-3173.57426313,0.0001596,2]
[408281655,1773348641611,-742.82,0.00015968,2]
[408281656,1773348641620,-1026.17740878,0.00015968,2]
[408281657,1773348641630,-1500.0,0.00015968,2]
[408281658,1773348641643,-1500.0,0.00015968,2]
[408281659,1773348641652,-1500.0,0.00015968,2]
[408281660,1773348641662,-255.0,0.0001597,2]
[408281661,1773348641675,-17234.4460913,0.00016011,2]
[408281662,1773348641684,-420.0,0.00016042,2]
[408281663,1773348641694,-600.0,0.00016047,2]
[408281664,1773348641704,-500.0,0.00016047,2]
[408281665,1773348641715,-300.0,0.00016047,2]
[408281666,1773348641726,-5000.0,0.00016047,2]
[408281667,1773348641736,-250.0,0.00016047,2]
[408281668,1773348641747,-600.0,0.00016047,2]
[408281669,1773348641758,-250.0,0.00016047,2]
[408281670,1773348641768,-600.0,0.00016053,2]
[408281671,1773348641777,-420.0,0.00016069,2]
[408281672,1773348641787,-1680.0,0.00016118,2]
[408281673,1773348641797,-15071.90661255,0.00016125,2]
[408281674,1773348641806,-742.85,0.00016242,2]
[408281675,1773348641816,-500.0,0.00016298,2]
[408281676,1773348641825,-500.0,0.00016298,2]
[408281677,1773348641834,-500.0,0.00016298,2]
[408281678,1773348641847,-500.0,0.00016298,2]
[408281679,1773348641857,-500.0,0.00016298,2]
[408281680,1773348641866,-500.0,0.00016298,2]
[408281681,1773348641876,-500.0,0.00016298,2]
[408281682,1773348641885,-297.89846423,0.00016298,2]
[408281683,1773348642131,-500.0,0.00016298,2]
[408281684,1773348642141,-500.0,0.00016298,2]
[408281685,1773348642154,-500.0,0.00016298,2]
[408281686,1773348642163,-500.0,0.00016298,2]
[408281687,1773348642173,-539.98986878,0.00016298,2]
[408281688,1773348642183,-500.0,0.00016298,2]
[408281689,1773348642192,-500.0,0.00016298,2]
[408281690,1773348642202,-500.0,0.00016298,2]
[408281691,1773348642212,-500.0,0.00016298,2]
[408281692,1773348642223,-500.0,0.00016298,2]
[408281693,1773348642232,-1000.0,0.00016321,2]
[408281694,1773348642241,-1000.0,0.00016321,2]
[408281695,1773348642250,-373.86399521,0.00016394,2]
[408281696,1773348642259,-200.0,0.00016487,2]
[408281697,1773348642268,-32942.6924,0.00016494,2]
[408281698,1773348642279,-1000.0,0.00016494,2]
[408281699,1773348642289,-2000.0,0.00016516,2]
[408281700,1773348642300,-2000.0,0.00016516,2]
[408281701,1773348642310,-2000.0,0.00016516,2]
[408281702,1773348642321,-17234.4460913,0.00016567,2]
[408281703,1773348642330,-15071.90661255,0.00016597,2]
[408281704,1773348642339,-166.54,0.00016712,2]
[408281705,1773348642348,-150.0,0.00016743,2]
[408281706,1773348642358,-150.0,0.00016743,2]
[408281707,1773348642367,-500.0,0.00016743,2]
[408281708,1773348642376,-150.0,0.00016743,2]
[408281709,1773348642385,-500.0,0.00016743,2]
[408281710,1773348642395,-150.0,0.00016743,2]
[408281711,1773348642405,-500.0,0.00016743,2]
[408281712,1773348642415,-500.0,0.00016743,2]
[408281713,1773348642426,-500.0,0.00016743,2]
[408281714,1773348642436,-150.0,0.00016743,2]
[408281715,1773348642446,-500.0,0.00016743,2]
[408281716,1773348642455,-150.0,0.00016743,2]
[408281717,1773348642465,-500.0,0.00016743,2]
[408281718,1773348642476,-150.0,0.00016743,2]
[408281719,1773348642485,-150.0,0.00016743,2]
[408281720,1773348642495,-150.0,0.00016743,2]
[408281721,1773348642505,-497.0,0.00016743,2]
[408281722,1773348642516,-150.0,0.00016743,2]
[408281723,1773348642524,-500.0,0.00016743,2]
[408281724,1773348642534,-150.20209622,0.00016743,2]
[408281725,1773348642545,-500.0,0.00016743,2]
[408281726,1773348642555,-500.0,0.00016743,2]
[408281727,1773348642563,-150.0,0.00016743,2]
[408281728,1773348642573,-500.0,0.00016743,2]
[408281729,1773348642582,-150.0,0.00016743,2]
[408281730,1773348642591,-150.0,0.00016743,2]
[408281731,1773348642600,-275.17021168,0.00016798,2]
[408281732,1773348642609,-150.0,0.00016798,2]
[408281733,1773348642618,-500.0,0.00016798,2]
[408281734,1773348642627,-150.0,0.00016798,2]
[408281735,1773348642636,-500.0,0.00016798,2]
[408281736,1773348642645,-150.0,0.00016798,2]
[408281737,1773348642655,-500.0,0.00016798,2]
[408281738,1773348642664,-500.0,0.00016798,2]
[408281739,1773348642681,-500.0,0.00016798,2]
[408281740,1773348642692,-150.51586392,0.00016798,2]
[408281741,1773348642702,-500.0,0.00016798,2]
[408281742,1773348642712,-150.0,0.00016798,2]
[408281743,1773348642723,-500.0,0.00016798,2]
[408281744,1773348642732,-150.0,0.00016798,2]
[408281745,1773348642741,-150.0,0.00016798,2]
[408281746,1773348642752,-150.0,0.00016798,2]
[408281747,1773348642761,-497.0,0.00016798,2]
[408281748,1773348642771,-150.0,0.00016798,2]
[408281749,1773348642780,-500.0,0.00016798,2]
[408281750,1773348642790,-500.0,0.00016798,2]
[408281751,1773348642799,-500.0,0.00016798,2]
[408281752,1773348642809,-150.0,0.00016798,2]
[408281753,1773348642818,-500.0,0.00016798,2]
[408281755,1773348642827,-500.0,0.00016853,2]
[408281756,1773348642837,-250.0,0.00016853,2]
[408281757,1773348642846,-150.0,0.00016853,2]
[408281758,1773348642855,-554.83861542,0.00016853,2]
[408281759,1773348642864,-150.0,0.00016853,2]
[408281760,1773348642873,-500.0,0.00016853,2]
[408281761,1773348642882,-500.0,0.00016853,2]
[408281762,1773348642891,-362.33399582,0.00016853,2]
[408281763,1773348642900,-500.0,0.00016853,2]
[408281764,1773348642909,-150.0,0.00016853,2]
[408281765,1773348642918,-500.0,0.00016853,2]
[408281767,1773348642927,-201.10057062,0.00016853,2]
[408281768,1773348642936,-150.0,0.00016853,2]
[408281769,1773348642946,-150.0,0.00016853,2]
[408281770,1773348642955,-497.0,0.00016853,2]
[408281771,1773348642964,-150.0,0.00016853,2]
[408281772,1773348642973,-264.48543571,0.00016853,2]
[408281773,1773348642983,-500.0,0.00016853,2]
[408281775,1773348642992,-209.8782102,0.00016853,2]
[408281777,1773348643001,-606.55779082,0.00016853,2]
[408281779,1773348643010,-500.0,0.00016853,2]
[408281781,1773348643019,-810.60221638,0.00016868,2]
[408281782,1773348643028,-500.0,0.00016907,2]
[408281783,1773348643037,-250.58262965,0.00016907,2]
[408281785,1773348643046,-150.0,0.00016907,2]
[408281787,1773348643055,-500.0,0.00016907,2]
[408281788,1773348643064,-500.0,0.00016907,2]
[408281789,1773348643073,-500.0,0.00016907,2]
[408281790,1773348643082,-151.04601421,0.00016907,2]
[408281791,1773348643094,-500.0,0.00016907,2]
[408281792,1773348643103,-201.97192574,0.00016907,2]
[408281793,1773348643111,-206.83426636,0.00016907,2]
[408281794,1773348643120,-497.0,0.00016907,2]
[408281795,1773348643129,-150.0,0.00016907,2]
[408281796,1773348643138,-500.0,0.00016907,2]
[408281797,1773348643147,-500.0,0.00016907,2]
[408281798,1773348643156,-500.0,0.00016962,2]
[408281799,1773348643166,-150.0,0.00016962,2]
[408281800,1773348643175,-500.0,0.00016962,2]
[408281801,1773348643184,-500.0,0.00016962,2]
[408281802,1773348643193,-500.0,0.00016962,2]
[408281803,1773348643202,-500.0,0.00016962,2]
[408281804,1773348643212,-497.0,0.00016962,2]
[408281805,1773348643221,-150.0,0.00016962,2]
[408281806,1773348643230,-500.0,0.00016962,2]
[408281807,1773348643240,-500.0,0.00016962,2]
[408281808,1773348643249,-300.0,0.00017,2]
[408281809,1773348643258,-507.0,0.00017,2]
[408281811,1773348643268,-500.0,0.00017017,2]
[408281813,1773348643277,-250.0,0.00017017,2]
[408281815,1773348643290,-500.0,0.00017017,2]
[408281817,1773348643299,-500.0,0.00017017,2]
[408281819,1773348643309,-500.0,0.00017017,2]
[408281821,1773348643318,-500.0,0.00017017,2]
[408281823,1773348643327,-497.0,0.00017017,2]
[408281825,1773348643336,-250.0,0.00017017,2]
[408281827,1773348643346,-406.26148538,0.00017017,2]
[408281829,1773348643355,-500.0,0.00017017,2]
[408281831,1773348643365,-500.0,0.00017032,2]
[408281833,1773348643375,-200.0,0.00017035,2]
[408281835,1773348643384,-1500.0,0.00017064,2]
[408281836,1773348643393,-1000.0,0.00017064,2]
[408281837,1773348643403,-15071.90661255,0.00017069,2]
[408281838,1773348643411,-336.58574152,0.00017072,2]
[408281839,1773348643421,-500.0,0.00017072,2]
[408281841,1773348643431,-500.0,0.00017072,2]
[408281842,1773348643440,-500.0,0.00017072,2]
[408281843,1773348643450,-497.0,0.00017072,2]
[408281844,1773348643460,-500.0,0.00017072,2]
[408281845,1773348643469,-17234.4460913,0.00017122,2]
[408281846,1773348643479,-500.0,0.00017127,2]
[408281847,1773348643490,-267.0,0.00017127,2]
[408281848,1773348643499,-500.0,0.00017127,2]
[408281849,1773348643508,-497.0,0.00017127,2]
[408281850,1773348643517,-500.0,0.00017127,2]
[408281851,1773348643527,-500.0,0.00017181,2]
[408281852,1773348643536,-500.0,0.00017181,2]
[408281853,1773348643547,-497.0,0.00017181,2]
[408281854,1773348643559,-500.0,0.00017181,2]
[408281855,1773348643569,-433.0,0.00017187,2]
[408281856,1773348643579,-500.0,0.00017236,2]
[408281857,1773348643588,-174.0,0.00017236,2]
[408281858,1773348643600,-497.0,0.00017236,2]
[408281859,1773348643611,-500.0,0.00017236,2]
[408281860,1773348643621,-500.0,0.00017291,2]
[408281861,1773348643630,-497.0,0.00017291,2]
[408281862,1773348643639,-500.0,0.00017291,2]
[408281863,1773348643649,-500.0,0.00017346,2]
[408281864,1773348643658,-497.0,0.00017346,2]
[408281865,1773348643667,-450.0,0.00017346,2]
[408281866,1773348643681,-500.0,0.00017401,2]
[408281867,1773348643692,-497.0,0.00017401,2]
[408281868,1773348643702,-450.0,0.00017455,2]
[408281869,1773348643712,-497.0,0.00017455,2]
[408281870,1773348643723,-150.0,0.00017458,2]
[408281871,1773348643733,-202.690585,0.0001746,2]
[408281872,1773348643744,-497.0,0.0001751,2]
[408281873,1773348643754,-15071.90661255,0.00017541,2]
[408281874,1773348643763,-500.0,0.00017562,2]
[408281875,1773348643773,-587.0,0.00017564,2]
[408281876,1773348643784,-497.0,0.00017565,2]
[408281877,1773348643794,-200.0,0.00017583,2]
[408281878,1773348643803,-308.0,0.00017593,2]
[408281879,1773348643812,-497.0,0.0001762,2]
[408281880,1773348643822,-497.0,0.00017675,2]
[408281881,1773348643832,-17234.4460913,0.00017678,2]
[408281882,1773348643842,-500.0,0.00017709,2]
[408281883,1773348643852,-500.0,0.0001771,2]
[408281884,1773348643861,-500.0,0.0001771,2]
[408281885,1773348643871,-500.0,0.0001771,2]
[408281886,1773348643881,-500.0,0.0001771,2]
[408281887,1773348643900,-500.0,0.0001771,2]
[408281888,1773348643910,-500.0,0.0001771,2]
[408281889,1773348643920,-500.0,0.0001771,2]
[408281890,1773348643929,-500.0,0.0001771,2]
[408281891,1773348643939,-500.0,0.0001771,2]
[408281892,1773348643948,-497.0,0.00017729,2]
[408281893,1773348643958,-2351.0,0.0001773,2]
[408281894,1773348643967,-500.0,0.00017766,2]
[408281895,1773348643976,-500.0,0.00017766,2]
[408281896,1773348643986,-566.79968015,0.00017766,2]
[408281897,1773348643995,-500.0,0.00017766,2]
[408281898,1773348644004,-500.0,0.00017766,2]
[408281899,1773348644014,-500.0,0.00017766,2]
[408281900,1773348644023,-500.0,0.00017766,2]
[408281901,1773348644032,-497.0,0.00017784,2]
[408281902,1773348644042,-205.26,0.000178,2]
[408281903,1773348644051,-500.0,0.00017808,2]
[408281904,1773348644061,-497.0,0.00017839,2]
[408281905,1773348644071,-500.0,0.00017863,2]
[408281906,1773348644080,-497.0,0.00017894,2]
[408281907,1773348644089,-500.0,0.00017918,2]
[408281908,1773348644099,-497.0,0.00017948,2]
[408281909,1773348644108,-500.0,0.00017972,2]
[408281910,1773348644118,-508.0,0.00018003,2]
[408281911,1773348644127,-15071.90661255,0.00018012,2]
[408281912,1773348644136,-354.90199074,0.00018027,2]
[408281913,1773348644146,-250.0,0.000182,2]
[408281914,1773348644155,-500.0,0.00018232,2]
[408281915,1773348644165,-17234.4460913,0.00018233,2]
[408281916,1773348644174,-8610.01239405,0.000183,2]
[408281917,1773348644184,-305.57091289,0.00018333,2]
[408281918,1773348644193,-15071.90661255,0.00018484,2]
[408281919,1773348644203,-651.0,0.00018493,2]
[408281920,1773348644212,-9999.99,0.00018533,2]
[408281921,1773348644221,-150.99,0.00018533,2]
[408281922,1773348644231,-5713.6,0.00018533,2]
[408281923,1773348644239,-9999.99,0.00018533,2]
[408281924,1773348644248,-13682.15,0.00018533,2]
[408281925,1773348644258,-17495.4,0.00018533,2]
[408281926,1773348644267,-1500.0,0.00018538,2]
[408281927,1773348644280,-500.0,0.00018627,2]
[408281928,1773348644290,-17234.4460913,0.00018789,2]
[408281929,1773348644301,-15071.90661255,0.00018956,2]
[408281930,1773348644314,-160.0,0.00018973,2]
[408281931,1773348644324,-350.0,0.00019,2]
[408281932,1773348644335,-823.0,0.00019229,2]
[408281933,1773348644345,-507.0,0.0001925,4]
[408281934,1773348644354,-17234.4460913,0.00019344,2]
[408281935,1773348644366,-15071.90661255,0.00019428,2]
[408281936,1773348644377,-3292.0,0.00019503,2]
[408281937,1773348644387,-250.0,0.00019726,2]
[408281938,1773348644396,-429.0,0.00019748,2]
[408281939,1773348644405,-500.0,0.00019799,2]
[408281940,1773348644416,-500.0,0.00019799,2]
[408281941,1773348644426,-548.09996795,0.00019799,2]
[408281942,1773348644435,-500.0,0.00019799,2]
[408281943,1773348644444,-500.0,0.00019799,2]
[408281944,1773348644454,-500.0,0.00019799,2]
[408281945,1773348644463,-7100.0,0.000198,7]
[408281946,1773348644473,-2954.42978653,0.0001981,2]
[408281947,1773348644482,-500.0,0.00019898,2]
[408281948,1773348644492,-501.926287,0.00019899,2]
[408281949,1773348644503,-500.0,0.00019899,2]
[408281950,1773348644513,-500.0,0.00019899,2]
[408281951,1773348644524,-500.0,0.00019899,2]
[408281952,1773348644534,-500.0,0.00019899,2]
[408281953,1773348644544,-500.0,0.00019899,2]
[408281954,1773348644555,-500.0,0.00019899,2]
[408281955,1773348644564,-500.0,0.00019899,2]
[408281956,1773348644575,-500.0,0.00019899,2]
[408281957,1773348644585,-500.0,0.00019899,2]
[408281958,1773348644596,-271.2,0.00019899,2]
[408281959,1773348644605,-500.0,0.00019899,2]
[408281960,1773348644614,-500.0,0.00019899,2]
[408281961,1773348644624,-500.0,0.00019899,2]
[408281962,1773348644633,-500.0,0.00019899,2]
[408281963,1773348644643,-500.0,0.00019899,2]
[408281964,1773348644653,-500.0,0.00019899,2]
[408281965,1773348644666,-500.0,0.00019899,2]
[408281966,1773348644680,-500.0,0.00019899,2]
[408281967,1773348644689,-586.04621402,0.00019899,2]
[408281968,1773348644698,-500.0,0.00019899,2]
[408281969,1773348644708,-500.0,0.00019899,2]
[408281970,1773348644718,-500.0,0.00019899,2]
[408281971,1773348644728,-500.0,0.00019899,2]
[408281972,1773348644738,-500.0,0.00019899,2]
[408281973,1773348644749,-484.25426362,0.00019899,2]
[408281974,1773348644759,-500.0,0.00019899,2]
[408281975,1773348644769,-500.0,0.00019899,2]
[408281976,1773348644779,-500.0,0.00019899,2]
[408281977,1773348644788,-153.09936437,0.000199,3]
[408281978,1773348644798,-15071.90661255,0.000199,2]
[408281979,1773348644808,-1400.0,0.000199,7]
[408281980,1773348644817,-17234.4460913,0.000199,2]
[408281981,1773348644827,-245.85,0.00019902,2]
[408281982,1773348644836,-54807.7840846,0.00019942,2]
[408281983,1773348644846,-3534.2638985,0.00019942,2]
[408281984,1773348644855,-250585.4338285,0.00019942,2]
[408281985,1773348644864,-12229.2696402,0.00019942,2]
[408281986,1773348644874,-183.1230522,0.00019942,2]
[408281987,1773348644884,-501.01772395,0.00019973,2]
[408281988,1773348644893,-500.0,0.00019973,2]
[408281989,1773348644903,-500.0,0.00019973,2]
[408281990,1773348644912,-300.0,0.00019999,2]
[408281991,1773348644921,-666.0,0.00019999,2]
[408281992,1773348644931,-300.0,0.00019999,2]
[408281993,1773348644940,-229.15310187,0.00019999,2]
[408281994,1773348644950,-1131.19487627,0.00019999,5]
[408281995,1773348644959,-558.0,0.0002,2]
[408281996,1773348644969,-3607607.84929502,0.0002,2]
[408281997,1773348644978,-45628.40575783,0.0002,2]
[408281998,1773348644987,-951543.87932298,0.0002,2]
[408281999,1773348644996,-150.00592533,0.0002,3]
[408282000,1773348645006,-1000.0,0.0002,2]
[408282001,1773348645015,-151.0,0.0002,2]
[408282002,1773348645025,-151.0,0.0002,2]
[408282003,1773348645034,-151.0,0.0002,2]
[408282004,1773348645044,-217.225635,0.0002,2]
[408282005,1773348645056,-151.0,0.0002,2]
[408282006,1773348645065,-151.0,0.0002,2]
[408282007,1773348645075,-151.0,0.0002,2]
[408282008,1773348645084,-151.0,0.0002,2]
[408282009,1773348645094,-151.0,0.0002,2]
[408282010,1773348645103,-151.0,0.0002,2]
[408282011,1773348645112,-151.0,0.0002,2]
[408282012,1773348645121,-260.138692,0.0002,2]
[408282013,1773348645131,-151.0,0.0002,2]
[408282014,1773348645140,-151.0,0.0002,2]
[408282015,1773348645149,-151.0,0.0002,2]
[408282016,1773348645159,-151.0,0.0002,2]
[408282017,1773348645168,-215.896388,0.0002,2]
[408282018,1773348645178,-207.317476,0.0002,2]
[408282019,1773348645187,-207.317476,0.0002,2]
[408282020,1773348645196,-207.317476,0.0002,2]
[408282021,1773348645205,-207.317476,0.0002,2]
[408282022,1773348645214,-207.317476,0.0002,2]
[408282023,1773348645224,-207.317476,0.0002,2]
[408282024,1773348645233,-207.317476,0.0002,2]
[408282025,1773348645243,-207.317476,0.0002,2]
[408282026,1773348645252,-151.0,0.0002,2]
[408282027,1773348645261,-151.0,0.0002,2]
[408282028,1773348645271,-151.0,0.0002,2]
[408282029,1773348645280,-151.0,0.0002,2]
[408282030,1773348645290,-219.47681528,0.0002,7]
[408282031,1773348645299,-151.0,0.0002,2]
[408282032,1773348645308,-151.0,0.0002,2]
[408282033,1773348645318,-252.89333695,0.0002,2]
[408282034,1773348645327,-200.0,0.0002,2]
[408282035,1773348645336,-422.0,0.00020018,2]
[408282036,1773348645346,-422.0,0.00020022,2]
[408282037,1773348645355,-422.0,0.0002011,2]
[408282038,1773348645364,-1128.12,0.00020232,2]
[408282039,1773348645374,-1407.0622059,0.00020244,2]
[408282040,1773348645384,-429.0,0.00020253,2]
[408282041,1773348645393,-422.0,0.00020286,2]
[408282042,1773348645402,-422.0,0.00020323,2]
[408282043,1773348645411,-422.0,0.00020326,2]
[408282044,1773348645420,-422.0,0.000204,2]
[408282045,1773348645430,-422.0,0.00020525,2]
[408282046,1773348645442,-422.0,0.00020563,2]
[408282047,1773348645451,-200.84,0.000206,2]
[408282048,1773348645461,-2000.0,0.00020767,2]
[408282049,1773348645470,-313.9580153,0.00020809,2]
[408282050,1773348645480,-628.64,0.000209,7]
[408282051,1773348645490,-1152.0,0.00021053,2]
[408282052,1773348645499,-174.29,0.00021063,2]
[408282053,1773348645508,-1128.12,0.00021111,2]
[408282054,1773348645518,-177.15,0.00021113,2]
[408282055,1773348645527,-479.93,0.00021135,2]
[408282056,1773348645536,-422.0,0.00021165,2]
[408282057,1773348645545,-422.0,0.00021201,2]
[408282058,1773348645555,-830.99,0.00021207,2]
[408282059,1773348645564,-422.0,0.00021311,2]
[408282060,1773348645574,-422.0,0.00021423,2]
[408282061,1773348645584,-4609.0,0.00021453,2]
[408282062,1773348645593,-479.93,0.00021454,2]
[408282063,1773348645602,-507.0,0.000215,6]
[408282064,1773348645612,-422.0,0.00021527,2]
[408282065,1773348645621,-422.0,0.00021528,2]
[408282066,1773348645631,-422.0,0.0002153,2]
[408282067,1773348645640,-429.0,0.0002164,2]
[408282068,1773348645650,-422.0,0.00021676,2]
[408282069,1773348645659,-222.07,0.00021689,14]
[408282070,1773348645669,-422.0,0.00021723,2]
[408282071,1773348645682,-422.0,0.00021751,2]
[408282072,1773348645691,-479.93,0.00021773,2]
[408282073,1773348645702,-422.0,0.00021789,2]
[408282074,1773348645712,-5000.0,0.00021918,2]
[408282075,1773348645722,-354.28,0.00021922,2]
[408282076,1773348645734,-422.0,0.00021934,2]
[408282077,1773348645743,-422.0,0.00021956,2]
[408282078,1773348645755,-1128.12,0.00021991,2]
[408282079,1773348645766,-222.07,0.00022023,14]
[408282080,1773348645776,-177.15,0.00022051,2]
[408282081,1773348645786,-177.15,0.00022078,2]
[408282082,1773348645796,-479.9478825,0.00022092,2]
[408282083,1773348645806,-248.11,0.00022279,2]
[408282084,1773348645816,-527.43690204,0.00022369,12]
[408282085,1773348645826,-12229.2696401,0.0002248,2]
[408282086,1773348645841,-55913.167981,0.0002248,2]
[408282087,1773348645851,-2728.7188933,0.0002248,2]
[408282088,1773348645860,-788.6008697,0.00022503,2]
[408282089,1773348645870,-174.29,0.00022568,2]
[408282090,1773348645880,-2000.0,0.00022655,2]
[408282091,1773348645889,-1128.12,0.00022871,2]
[408282092,1773348645899,-2728.7188933,0.00023047,2]
[408282093,1773348645908,-12475.914126,0.00023047,2]
[408282094,1773348645918,-608.8594836,0.00023047,2]
[408282095,1773348645928,-918.0,0.00023049,2]
[408282096,1773348645937,-175.9606383,0.00023074,2]
[408282097,1773348645947,-3501.0,0.00023598,2]
[408282098,1773348645957,-507.0,0.0002375,8]
[408282099,1773348645967,-1128.12,0.0002375,2]
[408282100,1773348645977,-5532.0,0.000246,5]
[408282101,1773348645987,-1128.12,0.0002463,2]
[408282102,1773348645997,-1000.0,0.00024658,2]
[408282103,1773348646006,-151.0,0.000249,2]
[408282104,1773348646016,-65641.44734559,0.000249,3]
[408282105,1773348646368,-3153.20894288,0.000249,3]
[408282106,1773348646572,-1439.54712597,0.00014573,2]
[408282107,1773348646582,-2500.0,0.00015628,2]
[408282108,1773348646591,-20820.0646233,0.000249,3]
[408282111,1773348646815,-41081.75066749,0.000249,3]
[408282112,1773348668235,1434.991672,7.945e-05,2]
[408282113,1773348736908,500.0,9.4e-05,2]
[408282114,1773348744651,500.0,9.4e-05,2]
[408282115,1773348747178,500.0,9.4e-05,2]
[408282116,1773348748114,877.12523721,9.4e-05,2]
[408282117,1773348788274,500.0,7.945e-05,2]
[408282118,1773348848233,500.0,7.945e-05,2]
[408282119,1773348920651,5000.01,0.00014161,2]
[408282120,1773348920674,878.07,0.00014161,2]
[408282121,1773348929773,5000.01,0.00014161,2]